bitfinex-derivatives/quotes_SOLF0:USTF0_20240923
["timestamp","ask_amount","ask_price","bid_price","bid_amount"]
[1727112485407,9.68,142.97,142.93,9.68]
[1727112485914,9.68,142.97,142.94,3.4977]
[1727112486206,7.05468046,142.98,142.93,9.68]
[1727112486603,9.68,143.0,142.96,9.68]
[1727112487007,3.4965,142.99,142.96,13.1771]
[1727112487220,9.68,142.99,142.95,9.68]
[1727112487506,3.53609521,143.0,142.95,9.68]
[1727112487705,3.53609521,143.0,142.91,3.58156429]
[1727112487706,13.21609521,143.0,142.91,3.58156429]
[1727112487911,13.21609521,143.0,142.95,9.68]
[1727112488205,13.21609521,143.0,142.96,3.4971]
[1727112488206,3.4967,142.99,142.96,3.4971]
[1727112488406,9.68,142.98,142.93,9.68]
[1727112488608,9.68,142.99,142.96,9.68]
[1727112489111,3.4964,143.0,142.92,2.7675]
[1727112489411,9.68,142.99,142.95,9.68]
[1727112489607,1.463,143.05,142.95,9.68]
[1727112489608,9.68,143.0,142.95,9.68]
[1727112489801,16.73587683,143.0,142.97,3.4968]
[1727112490604,1.463,143.05,142.98,9.68]
[1727112490803,9.68,143.03,142.98,9.68]
[1727112491208,13.1757,143.03,142.99,3.4964]
[1727112491415,9.68,143.03,142.99,3.4964]
[1727112491708,13.1755,143.04,143.0,3.4961]
[1727112491907,1.04590389,143.03,143.0,3.4961]
[1727112492109,13.1755,143.04,143.0,3.4961]
[1727112492510,224.0,143.15,143.02,3.4958]
[1727112492711,83.52338094,143.18,143.01,9.68]
[1727112492712,9.68,143.06,143.01,9.68]
[1727112493106,13.1749,143.06,143.02,3.4956]
[1727112493711,13.1746,143.07,143.03,3.4954]
[1727112495212,13.1746,143.07,143.03,13.1754]
[1727112495406,13.1746,143.07,143.03,3.4954]
[1727112496108,3.4948,143.06,143.03,3.4954]
[1727112496508,9.68,143.08,143.04,3.4952]
[1727112496704,1.04596497,143.07,143.03,9.68]
[1727112496910,13.1745,143.08,143.03,9.68]
[1727112497113,13.1745,143.08,143.04,3.4951]
[1727112497510,3.4945,143.08,143.03,9.68]
[1727112497717,13.1745,143.08,143.04,9.68]
[1727112498519,13.16128877,143.09,143.05,9.68]
[1727112498710,3.48128877,143.09,143.05,9.68]
[1727112498920,3.48128877,143.09,143.0,3.52587115]
[1727112499215,3.48128877,143.09,143.07,3.4946]
[1727112500623,9.68,143.13,143.08,9.68]
[1727112500823,4.5032903,143.12,143.08,9.68]
[1727112501116,3.45696706,143.12,143.08,9.68]
[1727112501822,23.45114998,143.13,143.08,9.68]
[1727112502025,3.46920226,143.12,143.09,3.4939]
[1727112502727,9.68,143.15,143.09,9.68]
[1727112502914,1.04664817,143.14,143.09,9.68]
[1727112503113,1.04664817,143.14,143.11,3.4935]
[1727112503620,23.44685152,143.16,143.11,9.68]
[1727112503815,1.0466425,143.15,143.12,3.4932]
[1727112504515,1.0466425,143.15,143.13,3.4931]
[1727112505624,85.89932331,143.18,143.13,9.68]
[1727112505823,89.39142331,143.18,143.13,9.68]
[1727112506118,1.04676356,143.17,143.14,3.4927]
[1727112506515,3.4921,143.18,143.14,3.4927]
[1727112506719,4.53894182,143.17,143.14,3.4927]
[1727112506917,3.4921,143.17,143.14,3.4927]
[1727112507516,76.09147934,143.24,143.15,9.68]
[1727112507724,10.72709171,143.2,143.15,9.68]
[1727112507920,1.04709171,143.19,143.15,9.68]
[1727112508120,14.21889171,143.19,143.15,3.4925]
[1727112508324,9.68,143.19,143.15,3.4925]
[1727112509425,13.1717,143.19,143.15,3.4925]
[1727112510517,3.4919,143.18,143.15,3.4925]
[1727112510826,3.55614724,143.2,143.09,4.1719]
[1727112511022,9.68,143.15,143.11,9.68]
[1727112511519,9.68,143.15,143.13,3.4929]
[1727112511725,13.1725,143.16,143.13,3.4929]
[1727112511927,13.1719,143.18,143.15,3.4925]
[1727112512624,6.99633671,143.18,143.16,3.4924]
[1727112512832,3.4917,143.19,143.16,3.4924]
[1727112513015,1.04647056,143.18,143.16,3.4924]
[1727112513831,7.07265432,143.19,143.16,3.4924]
[1727112514025,1.04644071,143.18,143.16,3.4924]
[1727112514328,7.07265432,143.19,143.16,3.4924]
[1727112515425,3.58095432,143.19,143.17,13.1719]
[1727112515722,76.09147934,143.24,143.18,9.68]
[1727112515925,4.48986252,143.23,143.2,9.68]
[1727112516221,1.04633443,143.22,143.21,9.68]
[1727112516425,3.49489795,143.25,143.21,9.68]
[1727112516724,3.4902,143.26,143.21,13.171]
[1727112516931,4.54955541,143.25,143.21,9.68]
[1727112517125,3.4896,143.28,143.24,3.4904]
[1727112517326,1.04648085,143.27,143.24,3.4904]
[1727112517530,3.4896,143.28,143.25,9.68]
[1727112518325,3.4896,143.28,143.24,3.4904]
[1727112523335,3.4898,143.27,143.23,3.4905]
[1727112523837,3.4895,143.28,143.22,15.08]
[1727112524529,3.4895,143.28,143.25,3.4902]
[1727112526145,3.4895,143.28,143.24,3.4903]
[1727112526633,3.4895,143.28,143.25,3.4902]
[1727112527638,3.4893,143.29,143.25,3.4902]
[1727112527839,15.08,143.3,143.25,3.4902]
[1727112528242,1.04577613,143.29,143.25,3.4902]
[1727112529441,3.4896,143.28,143.25,3.4902]
[1727112529746,1.04580514,143.27,143.25,3.4902]
[1727112529937,3.4896,143.28,143.25,3.4902]
[1727112530241,1.04592869,143.27,143.25,3.4902]
[1727112530542,3.4896,143.28,143.25,3.4902]
[1727112530741,1.04623542,143.27,143.25,3.4902]
[1727112533750,1.04623542,143.27,143.23,1.3686]
[1727112533751,4.53603542,143.27,143.24,3.4904]
[1727112534043,3.42582273,143.35,143.24,15.08]
[1727112534243,1.04644853,143.32,143.24,15.08]
[1727112534442,1.04644853,143.32,143.26,3.4898]
[1727112534642,15.08,143.31,143.23,1.3686]
[1727112534843,1.04644853,143.3,143.23,1.3686]
[1727112535045,3.4895,143.28,143.25,3.4901]
[1727112535344,15.08,143.31,143.23,1.3686]
[1727112535541,1.04643235,143.3,143.23,1.3686]
[1727112535844,3.4897,143.27,143.24,3.4902]
[1727112536047,15.08,143.31,143.24,3.4902]
[1727112536244,1.0463039,143.3,143.24,3.4902]
[1727112536449,15.08,143.31,143.23,1.3686]
[1727112536839,3.4896,143.28,143.25,3.4902]
[1727112537045,3.4896,143.28,143.23,1.3686]
[1727112537241,15.08,143.31,143.23,1.3686]
[1727112537550,3.57870341,143.33,143.23,1.3686]
[1727112537551,3.4899,143.27,143.23,1.3686]
[1727112538047,3.49,143.26,143.23,1.3686]
[1727112538443,13.14,143.26,143.23,1.3686]
[1727112538650,13.14,143.26,143.23,4.8591]
[1727112539544,3.4902,143.25,143.23,3.4905]
[1727112539943,9.65,143.25,143.22,3.4908]
[1727112540444,9.65,143.25,143.21,9.65]
[1727112540651,9.65,143.25,143.21,13.141]
[1727112541153,3.4905,143.24,143.21,13.141]
[1727112542854,3.4908,143.23,143.2,3.4912]
[1727112543657,3.4908,143.23,143.21,3.4911]
[1727112543850,9.65,143.24,143.19,9.65]
[1727112544153,9.65,143.25,143.21,9.65]
[1727112544350,9.65,143.25,143.21,13.141]
[1727112544958,3.4906,143.24,143.21,13.141]
[1727112546161,3.4907,143.23,143.21,3.491]
[1727112547564,3.491,143.22,143.19,3.4916]
[1727112547762,9.65,143.21,143.19,3.4916]
[1727112547958,9.65,143.21,143.17,12.3681]
[1727112548162,3.4914,143.2,143.18,3.4918]
[1727112548463,9.65,143.21,143.18,3.4918]
[1727112549570,13.1413,143.21,143.19,3.4916]
[1727112550361,3.4917,143.19,143.17,3.4921]
[1727112550556,9.65,143.2,143.16,1.3511]
[1727112551751,9.65,143.22,143.17,9.65]
[1727112552570,3.4913,143.21,143.18,3.4917]
[1727112554667,3.4913,143.21,143.19,3.4916]
[1727112554857,13.141,143.22,143.19,3.4916]
[1727112555458,1.4197,143.27,143.2,9.65]
[1727112555660,2.8004,143.28,143.21,9.65]
[1727112555661,9.65,143.25,143.21,9.65]
[1727112555861,1.04609605,143.24,143.21,9.65]
[1727112556259,4.53659605,143.24,143.21,13.141]
[1727112556467,3.4905,143.24,143.21,13.141]
[1727112556664,13.1405,143.24,143.21,3.491]
[1727112557773,9.65,143.27,143.22,9.65]
[1727112557976,1.04577586,143.26,143.22,9.65]
[1727112558165,4.53587586,143.26,143.23,3.4905]
[1727112558369,1.04577586,143.25,143.23,3.4905]
[1727112558676,1.04577586,143.25,143.22,13.1408]
[1727112559783,4.53597586,143.25,143.22,13.1408]
[1727112560074,1.04577586,143.24,143.22,13.1408]
[1727112560277,3.4902,143.25,143.22,13.1408]
[1727112562977,1.04484385,143.24,143.22,13.1408]
[1727112563572,3.4902,143.25,143.22,13.1408]
[1727112563769,13.1401,143.26,143.22,13.1408]
[1727112563965,1.04490166,143.25,143.23,9.65]
[1727112564273,9.65,143.28,143.23,9.65]
[1727112564476,3.4901,143.26,143.23,9.65]
[1727112564677,1.04495482,143.25,143.23,13.1405]
[1727112564977,3.4901,143.26,143.23,13.1405]
[1727112565475,13.1403,143.25,143.17,2.7866]
[1727112565681,13.1403,143.25,143.21,9.65]
[1727112566471,13.1403,143.25,143.22,3.4907]
[1727112566778,3.4903,143.25,143.22,13.1407]
[1727112567574,9.65,143.26,143.2,9.65]
[1727112567875,9.65,143.24,143.2,9.65]
[1727112568176,13.1406,143.24,143.21,3.491]
[1727112569187,3.51205029,143.31,143.23,9.65]
[1727112569491,9.65,143.29,143.25,9.65]
[1727112569677,4.53458412,143.28,143.25,9.65]
[1727112569877,1.04498412,143.27,143.25,9.65]
[1727112570077,3.4896,143.28,143.25,9.65]
[1727112570684,3.4893,143.29,143.25,9.65]
[1727112570880,3.4893,143.29,143.27,9.65]
[1727112571487,3.55021772,143.32,143.28,9.65]
[1727112571676,1.04507704,143.31,143.28,9.65]
[1727112571878,1.04507704,143.3,143.28,13.1393]
[1727112572081,3.4886,143.32,143.28,13.1393]
[1727112572375,1.04512925,143.31,143.28,9.65]
[1727112572787,3.4884,143.33,143.29,13.1391]
[1727112572987,4.49440491,143.32,143.29,13.1391]
[1727112573172,1.04527427,143.31,143.29,13.1391]
[1727112573381,85.68972712,143.34,143.29,13.1391]
[1727112573683,1.04525997,143.33,143.29,13.1391]
[1727112573888,6.98301853,143.32,143.29,13.1391]
[1727112574075,1.04525997,143.31,143.29,13.1391]
[1727112575990,1.04525997,143.31,143.28,13.1393]
[1727112576479,1.04525997,143.31,143.29,3.4891]
[1727112576881,13.1384,143.33,143.29,3.4891]
[1727112577089,9.65,143.33,143.29,3.4891]
[1727112577387,1.04518229,143.32,143.29,3.4891]
[1727112577792,3.4885,143.32,143.29,3.4891]
[1727112577979,2.09036494,143.31,143.29,3.4891]
[1727112578181,1.04518243,143.31,143.29,3.4891]
[1727112579785,1.04518243,143.31,143.22,2.7234]
[1727112579987,10.69518243,143.31,143.27,9.65]
[1727112580486,3.489,143.3,143.27,9.65]
[1727112580985,3.489,143.3,143.27,13.1396]
[1727112583592,3.4887,143.31,143.28,3.4893]
[1727112583792,3.4887,143.31,143.28,13.1393]
[1727112586079,3.4887,143.31,143.28,9.65]
[1727112588887,3.489,143.3,143.28,9.65]
[1727112599295,3.4888,143.31,143.28,13.1394]
[1727112600795,13.1385,143.32,143.29,3.4891]
[1727112601096,1.04572657,143.31,143.29,9.65]
[1727112601297,7.00431705,143.33,143.3,3.4888]
[1727112601500,1.04573057,143.32,143.3,3.4888]
[1727112601696,3.4884,143.33,143.3,3.4888]
[1727112601897,1.04573948,143.32,143.3,3.4888]
[1727112602100,4.53423948,143.32,143.29,13.1391]
[1727112602300,3.4885,143.32,143.29,13.1391]
[1727112603003,9.65,143.32,143.27,2.874]
[1727112603203,9.65,143.32,143.27,12.524]
[1727112603407,3.4888,143.31,143.28,3.4894]
[1727112603800,3.4888,143.31,143.28,13.1394]
[1727112604900,3.4886,143.32,143.28,13.1394]
[1727112605502,3.4886,143.32,143.29,3.4891]
[1727112605702,6.93379868,143.33,143.29,9.65]
[1727112605904,1.0459828,143.32,143.29,9.65]
[1727112606401,4.5344828,143.32,143.29,9.65]
[1727112606705,1.04601634,143.31,143.29,9.65]
[1727112606912,1.04601634,143.31,143.28,9.65]
[1727112607113,3.4887,143.31,143.28,13.1393]
[1727112607607,3.44539868,143.33,143.29,9.65]
[1727112607799,1.0457416,143.32,143.29,9.65]
[1727112608000,9.65,143.34,143.29,9.65]
[1727112608194,1.04560315,143.33,143.29,9.65]
[1727112608406,3.4886,143.32,143.29,13.1391]
[1727112608796,9.65,143.34,143.29,13.1391]
[1727112608994,4.53407392,143.33,143.3,3.4889]
[1727112609202,1.04567392,143.32,143.3,3.4889]
[1727112609400,3.4884,143.33,143.3,3.4889]
[1727112609700,1.04574236,143.32,143.3,3.4889]
[1727112611010,1.04574236,143.32,143.29,13.1391]
[1727112612612,1.04557279,143.31,143.29,13.1391]
[1727112612905,1.04557279,143.3,143.29,13.1391]
[1727112613113,13.73381991,143.37,143.29,9.65]
[1727112613304,90.7519,143.43,143.34,9.65]
[1727112613305,16.48313833,143.4,143.34,9.65]
[1727112613618,16.48313833,143.4,143.35,13.1376]
[1727112613619,3.487,143.39,143.35,13.1376]
[1727112614110,4.5251773,143.38,143.35,9.65]
[1727112614409,1.0380773,143.37,143.35,9.65]
[1727112614611,1.0380773,143.37,143.35,13.1377]
[1727112614807,1.0380773,143.37,143.35,9.65]
[1727112615201,10.6880773,143.37,143.27,2.874]
[1727112615402,9.65,143.35,143.27,2.874]
[1727112615605,1.0380773,143.34,143.3,9.65]
[1727112615908,1.0380773,143.34,143.31,9.65]
[1727112616311,1.0380773,143.34,143.33,9.65]
[1727112616506,1.03782848,143.34,143.33,9.65]
[1727112616904,1.03782848,143.37,143.33,9.65]
[1727112617109,4.52542848,143.36,143.33,9.65]
[1727112617413,1.03782848,143.35,143.33,9.65]
[1727112619111,1.03782848,143.35,143.33,13.1382]
[1727112619399,3.4876,143.36,143.33,13.1382]
[1727112620314,9.65,143.4,143.35,9.65]
[1727112620708,4.52546039,143.39,143.35,13.1376]
[1727112620909,1.03846039,143.38,143.35,13.1376]
[1727112621112,1.03846039,143.38,143.36,9.65]
[1727112621307,3.4869,143.39,143.36,9.65]
[1727112621507,112.24708913,143.41,143.36,9.65]
[1727112621508,1.03828102,143.38,143.36,9.65]
[1727112621708,3.4867,143.4,143.36,13.1373]
[1727112621908,1.03817559,143.39,143.36,13.1373]
[1727112624518,1.03822414,143.38,143.36,13.1373]
[1727112625112,3.4868,143.39,143.36,13.1373]
[1727112625312,1.03808934,143.38,143.36,13.1373]
[1727112626625,4.52518934,143.38,143.35,9.65]
[1727112626820,3.4871,143.38,143.35,9.65]
[1727112628124,3.4873,143.37,143.35,9.65]
[1727112628423,9.65,143.4,143.35,9.65]
[1727112628622,1.03864494,143.39,143.35,9.65]
[1727112629018,4.52554494,143.39,143.35,13.1377]
[1727112629226,1.03864494,143.38,143.36,9.65]
[1727112631023,1.03864494,143.38,143.36,13.1375]
[1727112631928,4.52564494,143.38,143.35,13.1377]
[1727112632132,3.487,143.38,143.35,13.1377]
[1727112632828,3.487,143.38,143.35,9.65]
[1727112633525,3.487,143.38,143.35,13.1377]
[1727112634115,9.65,143.4,143.35,13.1377]
[1727112634116,3.4869,143.39,143.35,13.1377]
[1727112634312,1.03786455,143.38,143.36,13.1374]
[1727112634631,1.03786455,143.38,143.33,4.1354]
[1727112634632,9.65,143.42,143.37,9.65]
[1727112634931,1.03789356,143.41,143.37,13.1372]
[1727112635121,3.4867,143.4,143.37,9.65]
[1727112635321,1.03789356,143.39,143.37,9.65]
[1727112635920,4.52469356,143.39,143.36,13.1374]
[1727112636119,3.4868,143.39,143.36,9.65]
[1727112638022,3.487,143.38,143.36,9.65]
[1727112641928,1.03661985,143.37,143.36,9.65]
[1727112644932,1.0363038,143.37,143.36,9.65]
[1727112646530,1.0363038,143.37,143.36,13.1375]
[1727112646731,1.0363038,143.37,143.36,9.65]
[1727112646936,24.38892538,143.43,143.36,9.65]
[1727112647139,14.73892538,143.42,143.39,9.65]
[1727112647431,1.0363038,143.41,143.39,9.65]
[1727112647633,1.0363038,143.4,143.39,9.65]
[1727112648031,1.0363038,143.43,143.39,9.65]
[1727112648234,1.0363038,143.42,143.39,9.65]
[1727112648534,1.0363038,143.41,143.39,9.65]
[1727112648741,23.35089531,143.44,143.39,9.65]
[1727112648938,3.4864,143.41,143.38,9.65]
[1727112649141,1.03638447,143.4,143.38,9.65]
[1727112649437,3.4864,143.41,143.38,9.65]
[1727112649626,1.03639379,143.4,143.38,9.65]
[1727112649836,3.4864,143.41,143.38,9.65]
[1727112650032,1.03639571,143.4,143.38,9.65]
[1727112651231,4.52299571,143.4,143.38,9.65]
[1727112651433,3.4866,143.4,143.38,9.65]
[1727112652136,3.4864,143.41,143.38,9.65]
[1727112652342,1.03639122,143.4,143.38,9.65]
[1727112652537,10.68639122,143.4,143.33,4.1354]
[1727112652739,3.4869,143.39,143.35,9.65]
[1727112652936,9.65,143.4,143.35,9.65]
[1727112653135,9.65,143.39,143.33,4.1354]
[1727112653330,3.4872,143.38,143.35,9.65]
[1727112653545,9.65,143.39,143.35,9.65]
[1727112653942,3.4871,143.38,143.36,9.65]
[1727112654248,9.65,143.41,143.36,9.65]
[1727112654437,1.03647654,143.4,143.38,9.65]
[1727112654640,9.65,143.43,143.38,9.65]
[1727112654839,10.68653564,143.42,143.37,9.65]
[1727112655141,10.68653564,143.41,143.37,9.65]
[1727112655450,1.03653564,143.4,143.37,9.65]
[1727112656443,3.4868,143.39,143.37,9.65]
[1727112657441,3.487,143.38,143.36,9.65]
[1727112657638,9.65,143.39,143.35,9.65]
[1727112658034,3.4872,143.38,143.35,9.65]
[1727112658338,3.4872,143.38,143.36,9.65]
[1727112658734,3.4869,143.39,143.37,9.65]
[1727112659137,3.4866,143.4,143.37,9.65]
[1727112659844,9.65,143.41,143.37,9.65]
[1727112660049,1.03635826,143.4,143.37,9.65]
[1727112660438,3.4867,143.4,143.37,9.65]
[1727112660633,13.70588912,143.43,143.39,9.65]
[1727112660933,9.65,143.44,143.39,9.65]
[1727112660934,4.52266415,143.42,143.39,9.65]
[1727112661137,1.03646415,143.41,143.39,9.65]
[1727112661345,3.4862,143.42,143.39,9.65]
[1727112661545,23.36301846,143.44,143.39,9.65]
[1727112661546,4.52276639,143.41,143.39,9.65]
[1727112661750,9.65,143.42,143.37,9.65]
[1727112661945,1.03644554,143.41,143.37,9.65]
[1727112662145,9.65,143.42,143.37,9.65]
[1727112662345,1.03644229,143.41,143.37,9.65]
[1727112662548,9.65,143.4,143.33,4.1354]
[1727112662740,9.65,143.4,143.35,9.65]
[1727112663139,13.71301846,143.44,143.36,13.1374]
[1727112663449,9.65,143.41,143.36,13.1374]
[1727112663649,4.52302088,143.4,143.36,13.1374]
[1727112663955,3.4867,143.4,143.36,13.1374]
[1727112664149,1.03627496,143.39,143.38,9.65]
[1727112664344,9.65,143.43,143.38,9.65]
[1727112664345,1.03627496,143.4,143.38,9.65]
[1727112664549,1.03627496,143.39,143.33,4.1354]
[1727112664745,3.4863,143.41,143.38,13.137]
[1727112664947,1.03577436,143.4,143.38,13.137]
[1727112667537,3.4863,143.41,143.38,13.137]
[1727112667743,1.03617004,143.4,143.38,13.137]
[1727112671746,3.4863,143.41,143.38,13.137]
[1727112671956,1.03576178,143.4,143.38,13.137]
[1727112672157,4.52236178,143.4,143.37,9.65]
[1727112672458,1.03571953,143.39,143.37,9.65]
[1727112673745,1.03571953,143.39,143.37,13.1372]
[1727112675457,1.03571953,143.39,143.38,9.65]
[1727112675955,1.03622698,143.39,143.38,9.65]
[1727112676752,1.03622698,143.39,143.38,13.137]
[1727112677257,1.03622698,143.4,143.39,3.4868]
[1727112677455,3.4859,143.43,143.39,9.65]
[1727112677756,3.41173136,143.45,143.42,9.65]
[1727112677951,1.03668226,143.44,143.4,1.4676]
[1727112678158,13.75021544,143.46,143.43,9.65]
[1727112678358,3.4852,143.46,143.45,9.65]
[1727112678554,9.65,143.49,143.45,9.65]
[1727112678762,1.03687502,143.46,143.45,9.65]
[1727112679056,3.485,143.47,143.45,9.65]
[1727112679254,1.03687502,143.46,143.45,9.65]
[1727112679456,3.485,143.47,143.45,9.65]
[1727112680859,13.75021544,143.5,143.46,9.65]
[1727112681158,29.81346771,143.51,143.46,9.65]
[1727112681357,3.4845,143.49,143.46,9.65]
[1727112682249,3.4846,143.48,143.46,9.65]
[1727112682444,3.4846,143.48,143.45,3.4852]
[1727112682445,3.4846,143.48,143.45,13.1352]
[1727112682651,3.4846,143.48,143.45,9.65]
[1727112685556,3.4846,143.48,143.45,13.1353]
[1727112690359,13.1346,143.48,143.44,13.1355]
[1727112690661,9.65,143.47,143.43,9.65]
[1727112691061,3.4852,143.46,143.43,9.65]
[1727112691755,9.65,143.47,143.43,9.65]
[1727112692562,3.4852,143.46,143.43,9.65]
[1727112692861,9.65,143.47,143.43,13.1356]
[1727112693058,3.4852,143.46,143.43,9.65]
[1727112699454,3.4852,143.46,143.43,13.1358]
[1727112699658,13.135,143.47,143.44,9.65]
[1727112699868,3.485,143.47,143.44,9.65]
[1727112700159,13.72149989,143.5,143.46,9.65]
[1727112700362,1.03851701,143.49,143.46,9.65]
[1727112700870,10.4455,143.6,143.46,13.135]
[1727112701162,9.65,143.51,143.46,13.135]
[1727112702166,3.4844,143.49,143.46,13.135]
[1727112703260,3.4842,143.5,143.47,3.4848]
[1727112703765,3.4842,143.5,143.46,9.65]
[1727112703962,3.4842,143.5,143.46,13.1348]
[1727112705161,3.4842,143.5,143.46,3.4848]
[1727112705462,3.4842,143.5,143.46,13.1348]
[1727112707866,3.4839,143.51,143.47,3.4848]
[1727112708172,3.4839,143.51,143.47,13.1348]
[1727112708374,3.4839,143.51,143.48,3.4846]
[1727112708868,6.24556359,143.56,143.48,3.4846]
[1727112709069,6.24556359,143.56,143.47,9.65]
[1727112709267,9.65,143.53,143.42,3.49968612]
[1727112709470,3.484,143.51,143.47,13.1346]
[1727112711570,3.484,143.51,143.48,3.4846]
[1727112714270,3.484,143.51,143.47,13.1347]
[1727112714475,3.4841,143.5,143.47,13.1347]
[1727112714677,9.65,143.5,143.46,6.2116]
[1727112714871,9.65,143.5,143.46,12.3767]
[1727112715465,9.65,143.5,143.47,3.4846]
[1727112715978,3.484,143.51,143.47,9.65]
[1727112717884,3.484,143.51,143.48,3.4845]
[1727112719191,3.4837,143.52,143.48,3.4845]
[1727112719394,13.1337,143.52,143.48,3.4845]
[1727112720684,3.4835,143.53,143.49,3.4843]
[1727112720899,3.50596359,143.56,143.51,9.65]
[1727112721192,9.65,143.56,143.51,9.65]
[1727112721381,3.4831,143.55,143.51,9.65]
[1727112721991,16.56143119,143.56,143.52,3.4835]
[1727112722385,16.56143119,143.56,143.52,13.1335]
[1727112723192,3.42863119,143.56,143.53,3.4833]
[1727112723491,3.54263998,143.57,143.54,9.65]
[1727112723698,9.65,143.59,143.54,9.65]
[1727112723889,3.40258755,143.58,143.54,9.65]
[1727112724096,3.40258755,143.58,143.54,13.133]
[1727112724494,3.40258755,143.58,143.55,9.65]
[1727112724699,83.68,143.62,143.55,9.65]
[1727112724996,9.65,143.6,143.55,9.65]
[1727112725187,13.1319,143.6,143.55,13.1328]
[1727112725597,3.4819,143.6,143.56,3.4825]
[1727112725902,13.1319,143.6,143.56,3.4825]
[1727112726097,13.1319,143.6,143.56,13.1325]
[1727112726299,2.7312,143.67,143.59,9.65]
[1727112726493,9.65,143.64,143.59,9.65]
[1727112726697,3.54582872,143.63,143.59,9.65]
[1727112726901,16.67692872,143.63,143.59,13.1318]
[1727112727099,13.1311,143.63,143.59,13.1318]
[1727112727697,16.58497402,143.63,143.59,13.1318]
[1727112728199,13.10387402,143.63,143.59,13.1318]
[1727112728408,3.4808,143.64,143.6,3.4817]
[1727112728593,13.1308,143.64,143.6,3.4817]
[1727112729404,3.4808,143.64,143.6,9.65]
[1727112729603,13.1306,143.65,143.6,9.65]
[1727112729897,13.1306,143.65,143.6,13.1315]
[1727112730400,3.4807,143.64,143.6,13.1315]
[1727112730801,2.7312,143.67,143.57,9.65]
[1727112730802,9.65,143.62,143.57,9.65]
[1727112731012,13.18410436,143.62,143.57,9.65]
[1727112731393,13.1313,143.62,143.58,13.132]
[1727112731598,9.65,143.63,143.59,9.65]
[1727112732295,3.4811,143.63,143.59,13.1318]
[1727112733900,3.4812,143.62,143.59,9.65]
[1727112735005,16.67067636,143.63,143.59,13.1319]
[1727112735509,3.4811,143.63,143.6,9.65]
[1727112736917,6.94901611,143.63,143.6,9.65]
[1727112737309,3.4811,143.63,143.6,9.65]
[1727112738607,6.91696706,143.63,143.6,9.65]
[1727112738806,3.4811,143.63,143.6,9.65]
[1727112740715,7.00544619,143.63,143.6,9.65]
[1727112741014,3.4811,143.63,143.6,9.65]
[1727112741218,6.91662347,143.63,143.6,9.65]
[1727112742016,3.4808,143.64,143.61,9.65]
[1727112742217,2.7312,143.67,143.62,9.65]
[1727112742418,12.3812,143.67,143.62,9.65]
[1727112742819,3.4805,143.65,143.62,9.65]
[1727112743014,3.4682988,143.71,143.52,4.0442]
[1727112743015,3.4682988,143.71,143.64,9.65]
[1727112743221,9.65,143.69,143.64,9.65]
[1727112743419,3.48,143.67,143.64,9.65]
[1727112744311,3.4799,143.68,143.65,9.65]
[1727112745316,9.65,143.7,143.65,9.65]
[1727112746920,3.4798,143.68,143.65,9.65]
[1727112751023,3.4796,143.69,143.65,9.65]
[1727112752117,3.4796,143.69,143.64,3.4807]
[1727112752328,3.4798,143.68,143.65,9.65]
[1727112753319,3.4796,143.69,143.65,9.65]